bitfinex/quotes_ETHUSD_20240710
["timestamp","ask_amount","ask_price","bid_price","bid_amount"]
[1720600654326,3.24882,3095.4,3094.7,0.55]
[1720600654327,0.24882,3095.4,3094.7,0.55]
[1720600654633,1.11893289,3095.3,3094.7,0.55]
[1720600654828,1.11893289,3095.2,3094.7,0.83849]
[1720600655040,2.3622,3095.8,3094.7,0.83849]
[1720600655204,1.11881606,3095.7,3094.8,2.476]
[1720600655406,2.438,3096.0,3094.9,0.55]
[1720600655407,1.11881606,3095.6,3094.9,0.55]
[1720600655628,1.11881606,3095.5,3094.9,0.9076]
[1720600655823,0.437597,3095.9,3094.9,0.9076]
[1720600656118,1.11882607,3095.8,3094.9,0.9076]
[1720600656310,1.11882607,3095.7,3094.9,0.55]
[1720600657650,1.11882607,3095.7,3094.9,0.61461391]
[1720600657856,3.0,3095.9,3095.0,2.53081173]
[1720600658009,4.37574,3096.4,3095.1,0.85808117]
[1720600658010,1.11871507,3095.8,3095.1,0.85808117]
[1720600658224,4.9378,3096.3,3095.1,0.85808117]
[1720600658411,1.11871003,3096.2,3095.1,0.85808117]
[1720600658618,1.11871003,3096.1,3095.1,0.85808117]
[1720600658844,1.11871003,3096.0,3095.1,0.85808117]
[1720600659046,1.11871003,3095.9,3095.1,0.85808117]
[1720600659243,1.11870077,3095.8,3095.2,0.33242812]
[1720600659452,1.11870447,3095.7,3095.3,0.55]
[1720600659607,0.7534702,3096.2,3095.3,0.55]
[1720600659808,1.68782425,3096.1,3095.1,0.55]
[1720600660044,1.11869723,3096.0,3095.1,0.55]
[1720600660436,3.55669723,3096.0,3095.1,0.55]
[1720600660758,4.11869723,3095.9,3095.1,0.55]
[1720600661049,4.11869723,3095.9,3095.2,2.4746]
[1720600661050,1.11869723,3095.8,3095.2,2.4746]
[1720600661247,1.11869723,3095.8,3095.3,0.55]
[1720600661452,1.11869723,3096.2,3095.3,0.55]
[1720600661608,1.11869723,3096.1,3095.3,0.55]
[1720600661922,1.11869723,3096.0,3095.3,0.55]
[1720600662129,1.11869723,3095.9,3095.3,0.55]
[1720600662451,1.11869723,3095.8,3095.3,0.85246]
[1720600662680,4.48736072,3096.3,3095.3,0.85246]
[1720600662888,1.11865505,3096.2,3095.3,0.85246]
[1720600663187,1.18321655,3096.1,3095.4,0.332706]
[1720600663357,1.11865505,3096.0,3095.5,0.55]
[1720600663562,1.18321655,3096.0,3095.3,0.55]
[1720600663773,1.11865505,3095.9,3095.3,0.55]
[1720600663944,0.0645615,3095.8,3095.3,0.55]
[1720600664146,1.11865505,3095.7,3095.3,0.55]
[1720600666089,1.11874957,3095.6,3095.3,0.55]
[1720600666311,1.11874957,3095.5,3095.3,0.55]
[1720600666593,0.0645615,3095.8,3095.3,0.55]
[1720600666746,1.1187474,3095.7,3095.3,0.55]
[1720600666943,1.1187474,3095.6,3095.3,0.85246]
[1720600667179,3.0,3096.2,3095.4,2.401105]
[1720600667356,1.11862755,3096.1,3095.5,0.55]
[1720600667579,1.11862755,3096.0,3095.5,0.55]
[1720600667786,4.34685885,3096.5,3095.5,0.55]
[1720600667988,1.11858113,3096.4,3095.6,0.32118565]
[1720600668153,1.11858113,3096.4,3095.5,0.55]
[1720600668154,1.11858113,3096.3,3095.7,0.55]
[1720600668484,1.11858113,3096.2,3095.6,2.3365]
[1720600668692,1.34685885,3096.7,3095.7,0.55]
[1720600668893,1.11852153,3096.6,3095.7,0.55]
[1720600669075,1.11852153,3096.5,3095.7,0.55]
[1720600669392,1.11852325,3096.4,3095.7,0.92733208]
[1720600669561,1.11852325,3096.3,3095.7,0.92733208]
[1720600669754,1.11852325,3096.5,3095.7,0.92733208]
[1720600669949,1.11852325,3096.4,3095.7,0.92733208]
[1720600671386,1.11852325,3096.4,3095.8,2.3189]
[1720600671589,1.11852325,3096.4,3095.9,0.55]
[1720600672793,0.50681688,3096.5,3095.9,0.55]
[1720600673095,1.11850416,3096.4,3095.9,0.55]
[1720600673255,0.50681688,3096.5,3095.9,0.55]
[1720600673594,1.11851231,3096.4,3095.9,0.55]
[1720600673803,0.50681688,3096.5,3095.9,0.55]
[1720600673970,1.11850452,3096.4,3095.9,0.55]
[1720600674285,0.50681688,3096.5,3095.9,0.55]
[1720600674499,1.11851438,3096.4,3095.9,0.55]
[1720600674664,0.50681688,3096.5,3095.9,0.55]
[1720600674853,1.11851471,3096.4,3095.9,0.55]
[1720600675052,0.50681688,3096.5,3095.9,0.55]
[1720600675253,1.11851728,3096.4,3095.9,0.55]
[1720600675494,0.50681688,3096.5,3095.9,0.55]
[1720600675693,1.11851722,3096.4,3095.9,0.55]
[1720600675858,0.50681688,3096.5,3095.9,0.87462321]
[1720600676060,1.11848097,3096.4,3095.9,0.87462321]
[1720600676363,0.50681688,3096.5,3095.9,0.87462321]
[1720600676562,1.11849619,3096.4,3095.9,0.87462321]
[1720600676775,0.50681688,3096.5,3095.9,0.87462321]
[1720600676981,1.11851825,3096.4,3095.9,0.87462321]
[1720600677180,0.50681688,3096.5,3095.9,0.87462321]
[1720600677391,1.11849276,3096.4,3095.9,0.87462321]
[1720600677615,0.50681688,3096.5,3095.9,0.87462321]
[1720600677890,1.11849717,3096.4,3095.9,0.87462321]
[1720600678086,0.50681688,3096.5,3095.9,0.87462321]
[1720600678393,1.11848858,3096.4,3095.9,0.87462321]
[1720600678557,0.50681688,3096.5,3095.9,0.87462321]
[1720600678758,1.1185074,3096.4,3095.9,0.87462321]
[1720600678960,0.50681688,3096.5,3095.9,0.87462321]
[1720600679292,1.11849389,3096.4,3096.0,0.31935232]
[1720600679496,0.50681688,3096.5,3096.1,0.55]
[1720600679714,0.50681688,3096.5,3096.2,2.3481]
[1720600679993,0.50681688,3096.5,3096.3,0.83981]
[1720600680378,0.50681688,3096.5,3096.3,0.55]
[1720600688228,0.50681688,3096.5,3096.4,2.2781]
[1720600688519,0.50681688,3096.5,3096.4,2.8281]
[1720600688893,1.34685885,3097.4,3096.4,2.8281]
[1720600689095,1.34685885,3097.4,3096.6,2.3145]
[1720600689332,1.34685885,3097.4,3096.8,2.3145]
[1720600689511,1.34685885,3097.4,3096.9,0.61456818]
[1720600690928,1.34685885,3097.4,3096.9,0.55]
[1720600691229,1.34685885,3097.4,3097.0,0.28645]
[1720600691404,1.34685885,3097.4,3097.1,0.55]
[1720600691804,1.34685885,3097.4,3097.2,2.2788]
[1720600692106,1.34685885,3097.4,3097.3,0.55]
[1720600692314,0.0810378,3097.8,3097.3,0.55]
[1720600692528,0.0810378,3097.8,3097.4,0.28288]
[1720600692824,0.0810378,3097.8,3097.5,0.55]
[1720600697042,0.0810378,3097.8,3097.6,2.52465394]
[1720600697199,0.0810378,3097.8,3097.7,0.55]
[1720600704141,0.0810378,3097.8,3097.4,0.55]
[1720600704330,0.0810378,3097.8,3097.5,0.62241916]
[1720600704657,0.0810378,3097.8,3097.6,0.55]
[1720600706657,0.0810378,3097.8,3097.6,0.61455625]
[1720600707059,0.0810378,3097.8,3097.6,0.55]
[1720600707218,0.0810378,3097.8,3097.6,0.6145569]
[1720600708679,0.0810378,3097.8,3097.6,0.61455451]
[1720600710474,0.0810378,3097.8,3097.7,2.2977]
[1720600710781,0.0810378,3097.8,3097.7,3.20116737]
[1720600712569,0.0810378,3097.8,3097.7,3.30166737]
[1720600713949,1e-08,3097.8,3097.7,3.30166737]
[1720600721655,0.50641516,3098.9,3097.8,2.3722]
[1720600721858,0.50641516,3098.9,3097.9,0.61453958]
[1720600722052,0.50641516,3098.9,3098.0,0.29867396]
[1720600722253,3.0,3099.1,3098.1,0.61453537]
[1720600722589,2.4242,3099.2,3098.1,0.61453537]
[1720600722758,2.4242,3099.2,3098.1,0.55]
[1720600723099,2.4242,3099.2,3098.2,0.36630783]
[1720600723299,2.4242,3099.2,3098.3,3.7579916]
[1720600723469,2.4242,3099.2,3098.4,0.06453394]
[1720600723793,2.4242,3099.2,3098.5,0.55]
[1720600725799,3.0,3099.3,3098.5,2.469934]
[1720600725998,3.50631593,3099.4,3098.6,0.8519934]
[1720600728558,3.50631593,3099.4,3098.7,0.06453396]
[1720600728861,3.50631593,3099.4,3098.8,0.55]
[1720600729087,3.50631593,3099.4,3098.8,0.6145326]
[1720600730276,3.50631593,3099.4,3098.8,0.55]
[1720600730482,3.50631593,3099.4,3098.7,0.55]
[1720600730787,3.50631593,3099.4,3098.7,0.82073934]
[1720600731561,0.50631593,3099.4,3098.7,0.82073934]
[1720600731762,3.0,3099.7,3098.7,0.82073934]
[1720600732083,1.11731918,3099.6,3098.7,0.82073934]
[1720600732393,0.50626989,3099.7,3098.7,0.82073934]
[1720600732394,3.50626989,3099.7,3098.7,0.82073934]
[1720600732595,1.11731876,3099.6,3098.7,0.82073934]
[1720600732895,3.50626989,3099.7,3098.7,0.82073934]
[1720600733091,1.1173175,3099.6,3098.7,0.82073934]
[1720600733301,3.50626989,3099.7,3098.7,0.82073934]
[1720600733601,1.11733458,3099.6,3098.7,0.82073934]
[1720600733893,3.50626989,3099.7,3098.7,0.82073934]
[1720600734096,1.11731373,3099.6,3098.7,0.82073934]
[1720600734404,3.50626989,3099.7,3098.7,0.82073934]
[1720600734697,1.11730778,3099.6,3098.7,0.82073934]
[1720600734995,3.50626989,3099.7,3098.7,0.82073934]
[1720600735796,1.11729827,3099.6,3098.7,0.82073934]
[1720600735997,3.50626989,3099.7,3098.7,0.82073934]
[1720600736301,1.11731273,3099.6,3098.7,0.82073934]
[1720600736599,3.50626989,3099.7,3098.7,0.82073934]
[1720600736899,1.11731497,3099.6,3098.7,0.82073934]
[1720600737066,3.50626989,3099.7,3098.7,0.82073934]
[1720600737266,1.11730873,3099.6,3098.7,0.82073934]
[1720600737491,3.50626989,3099.7,3098.7,0.82073934]
[1720600737837,1.11730835,3099.6,3098.7,0.82073934]
[1720600737991,3.50626989,3099.7,3098.7,0.82073934]
[1720600738184,1.11730839,3099.6,3098.7,0.82073934]
[1720600738384,3.50626989,3099.7,3098.7,0.82073934]
[1720600738576,1.11730872,3099.6,3098.7,0.82073934]
[1720600738772,1.11730872,3099.5,3098.7,0.82073934]
[1720600738981,3.50626989,3099.7,3098.7,0.82073934]
[1720600739306,1.11731799,3099.6,3098.7,0.82073934]
[1720600739506,1.11731799,3099.5,3098.7,0.82073934]
[1720600739665,1.11731799,3099.6,3098.7,0.82073934]
[1720600740013,1.11731799,3099.5,3098.7,0.82073934]
[1720600740179,3.50626989,3099.7,3098.7,0.82073934]
[1720600740507,1.11732081,3099.6,3098.7,0.82073934]
[1720600740668,1.014,3099.3,3098.7,0.82073934]
[1720600741691,0.0645615,3099.6,3098.7,0.82073934]
[1720600741692,1.014,3099.1,3098.7,0.82073934]
[1720600742024,1.014,3099.1,3098.7,0.55]
[1720600742325,1.014,3099.1,3098.6,0.55]
[1720600742475,1.014,3099.3,3098.6,0.55]
[1720600742674,3.50626989,3099.7,3098.7,0.29554]
[1720600742675,1.11736671,3099.2,3098.7,0.29554]
[1720600742900,1.11736671,3099.1,3098.8,0.55]
[1720600743213,4.22405028,3099.7,3098.8,0.55]
[1720600743378,1.11738753,3099.6,3098.8,0.55]
[1720600743579,1.11738753,3099.5,3098.8,0.55]
[1720600743793,1.11738753,3099.4,3098.8,0.55]
[1720600744026,1.11738753,3099.3,3098.8,0.55]
[1720600744333,3.57113907,3099.2,3098.8,0.55]
[1720600744636,3.57113907,3099.2,3098.5,2.4054]
[1720600744637,1.11743907,3099.1,3098.6,0.55]
[1720600745573,2.4537,3099.5,3098.6,0.55]
[1720600745574,4.11743907,3099.4,3098.6,0.55]
[1720600745780,1.11743907,3099.3,3098.6,0.55]
[1720600746677,0.0645615,3099.2,3098.6,0.55]
[1720600746877,1.11743907,3099.1,3098.6,0.55]
[1720600747725,1.1175537,3099.0,3098.6,0.55]
[1720600748013,1.1175537,3098.9,3098.6,0.55]
[1720600748216,4.65668796,3099.4,3098.4,5.98170806]
[1720600748217,2.4112,3099.0,3098.4,5.98170806]
[1720600748517,1.1175537,3098.9,3098.4,6.93085537]
[1720600749215,1.1175537,3098.9,3098.5,2.3731]
[1720600749419,1.1175537,3099.2,3098.6,0.93039554]
[1720600749717,1.1175537,3099.1,3098.5,2.3731]
[1720600749917,1.1175537,3099.0,3098.5,2.3731]
[1720600750218,1.1175537,3098.9,3098.6,0.55]
[1720600750511,1.1175537,3098.8,3098.6,0.55]
[1720600750715,1.1175537,3098.7,3098.6,0.55]
[1720600751080,1.34647246,3099.2,3098.5,0.55]
[1720600751402,1.11758488,3099.1,3098.5,0.55]
[1720600751601,1.11758488,3099.0,3098.5,0.55]
[1720600752316,2.3567,3098.9,3098.5,0.55]
[1720600752517,2.3567,3098.9,3098.1,5.98170806]
[1720600752518,1.11758488,3098.8,3098.1,5.98170806]
[1720600752677,4.11758488,3098.8,3098.1,5.98170806]
[1720600752880,1.11758488,3098.7,3098.1,5.98170806]
[1720600753515,0.0645615,3098.6,3098.1,5.98170806]
[1720600753717,4.34928905,3098.8,3098.1,5.98170806]
[1720600753918,5.18815609,3098.8,3098.1,5.98170806]
[1720600754114,0.0645615,3098.7,3098.1,5.98170806]
[1720600754721,2.4331,3098.6,3098.1,5.98170806]
[1720600754922,1.34928905,3098.4,3098.1,5.98170806]
[1720600755086,1.11776993,3098.3,3097.5,5.98170806]
[1720600755433,1.18244257,3098.2,3097.5,5.98170806]
[1720600755718,1.11788107,3098.1,3097.5,5.98170806]
[1720600756082,2.3797,3097.9,3097.5,5.98170806]
[1720600756401,1.11788107,3097.8,3097.5,5.98170806]
[1720600756630,0.0645615,3097.7,3097.5,5.98170806]
[1720600756828,1.11788107,3097.6,3097.1,3.22]
[1720600757062,2.69720248,3097.6,3097.1,3.22]
[1720600757242,1.11788107,3097.5,3097.1,3.22]
[1720600757440,3.0,3097.7,3097.1,3.22]
[1720600757641,1.11810535,3097.6,3097.1,3.22]
[1720600757960,4.34928905,3097.8,3097.1,3.22]
[1720600757961,1.34928905,3097.7,3097.1,3.22]
[1720600758143,1.11810934,3097.6,3097.1,3.22]
[1720600758334,3.0,3097.7,3097.1,3.22]
[1720600758530,3.0,3097.8,3097.1,3.22]
[1720600758864,1.11808233,3097.7,3097.1,3.22]
[1720600759163,3.0,3097.8,3097.1,4.14017081]
[1720600759534,3.0,3097.8,3097.2,0.55]
[1720600760831,3.0,3098.1,3097.2,0.55]
[1720600761043,5.4002,3098.2,3097.3,0.39061708]
[1720600761556,5.4002,3098.2,3097.4,0.55]
[1720600763962,3.0,3098.2,3097.4,0.55]
[1720600764117,1.5086658,3098.5,3097.4,0.55]
[1720600764118,3.0,3098.4,3097.4,0.55]
[1720600764324,3.55190123,3098.3,3097.4,0.55]
[1720600764522,3.0,3098.2,3097.4,0.55]
[1720600764821,2.4717,3098.1,3097.4,1.24223251]
[1720600765043,3.0,3098.2,3097.4,1.24223251]
[1720600765230,2.434,3098.3,3097.4,1.24223251]
[1720600767358,2.4533,3098.2,3097.4,0.55]
[1720600767569,5.4533,3098.2,3097.4,0.55]
[1720600768752,0.0645615,3098.1,3097.4,0.55]
[1720600768936,3.0645615,3098.1,3097.4,0.55]
[1720600769271,3.0,3098.1,3097.3,0.55]
[1720600769559,5.4533,3098.2,3097.4,0.65317081]
[1720600769761,0.0645615,3098.1,3097.5,0.55]
[1720600770064,4.97126579,3098.1,3097.2,5.98170806]
[1720600770248,2.434,3097.9,3097.2,5.98170806]
[1720600770439,0.0645615,3097.8,3097.2,5.98170806]
[1720600771161,2.434,3097.9,3097.2,5.98170806]
[1720600771687,2.434,3097.9,3097.3,0.55]
[1720600772263,3.3145015,3097.9,3097.3,0.55]
[1720600772509,3.0,3097.8,3097.3,0.55]
[1720600773698,2.278,3097.7,3096.7,8.39950806]
[1720600773984,2.278,3097.7,3096.8,2.05595081]
[1720600774763,2.278,3097.7,3096.9,0.55]
[1720600776470,1.11810632,3097.6,3096.9,0.55]
[1720600776676,3.0,3097.6,3096.9,0.55]
[1720600776984,2.278,3097.7,3096.9,0.55]
[1720600777192,1.11810728,3097.6,3096.9,0.55]
[1720600777489,3.0,3097.6,3096.9,0.55]
[1720600778470,2.278,3097.7,3096.9,0.55]
[1720600778792,1.11810583,3097.6,3096.9,0.55]
[1720600779087,3.0,3097.6,3096.9,0.55]
[1720600779300,5.278,3097.7,3096.9,0.55]
[1720600779502,1.11809769,3097.6,3096.9,0.55]
[1720600779667,1.11809769,3097.5,3096.9,0.55]
[1720600780000,1.11809769,3097.5,3096.9,1.65054589]
[1720600782813,1.016,3097.2,3096.9,1.65054589]
[1720600783108,1.016,3097.2,3096.9,0.55]
[1720600784511,1.11814968,3097.1,3096.8,0.55]
[1720600784808,1.016,3097.2,3096.8,0.55]
[1720600784964,1.1181747,3097.1,3096.8,0.55]
[1720600785167,1.1181747,3097.1,3096.9,0.89495081]
[1720600785386,1.1181747,3097.1,3097.0,0.55]
[1720600786167,1.11817522,3097.1,3097.0,0.55]
[1720600787809,1.11817522,3097.1,3097.0,2.8162]
[1720600788101,1.016,3097.2,3097.0,2.8162]
[1720600788307,1.016,3097.2,3097.1,0.37111508]
[1720600788475,1.11807816,3097.2,3097.1,0.92111508]
[1720600788980,2.13407816,3097.2,3097.1,0.92111508]
[1720600789302,2.13407816,3097.2,3097.1,0.55]
[1720600789679,2.13410663,3097.2,3097.1,0.55]
[1720600791607,1.11810663,3097.2,3097.1,0.55]
[1720600791771,2.13410663,3097.2,3097.1,0.55]
[1720600791971,2.13410663,3097.2,3097.0,0.55]
[1720600792174,1.11810663,3097.1,3097.0,0.55]
[1720600793075,1.11815023,3097.1,3097.0,0.55]
[1720600794276,1.11815023,3097.1,3096.7,5.98170806]
[1720600794578,1.016,3096.8,3096.7,5.98170806]
[1720600794794,2.13415023,3096.8,3096.4,0.00480585]
[1720600795011,1.016,3096.5,3096.4,0.00480585]
[1720600795309,1.23587117,3096.5,3096.4,0.00480585]
[1720600795532,2.4185829,3096.5,3096.4,0.00480585]
[1720600795697,5.4185829,3096.5,3096.4,0.00480585]
[1720600796283,5.41900724,3096.5,3096.4,0.00480585]
[1720600796489,5.41900769,3096.5,3096.4,0.00480585]
[1720600797741,2.41900769,3096.5,3096.4,0.00480585]
[1720600798064,6.06060449,3096.5,3096.4,0.00480585]
[1720600798338,9.65537769,3096.5,3096.4,0.00480585]
[1720600798489,11.0009826,3096.5,3096.4,0.00480585]
[1720600798687,12.4249826,3096.5,3096.4,0.00480585]
[1720600799210,10.4873126,3096.5,3096.4,0.00480585]
[1720600799401,12.4249826,3096.5,3096.4,0.00480585]
[1720600799737,12.42503462,3096.5,3096.4,0.00480585]
[1720600800226,11.07942971,3096.5,3096.4,0.00480585]
[1720600800629,12.76143873,3096.5,3096.4,0.00480585]
[1720600801228,12.76166075,3096.5,3096.4,0.00480585]
[1720600801606,11.07942971,3096.5,3096.4,0.00480585]
[1720600802020,9.96080267,3096.5,3096.4,0.00480585]
[1720600802223,11.07949897,3096.5,3096.4,0.00480585]
[1720600802540,12.42411383,3096.5,3096.4,0.00480585]
[1720600803089,10.48644383,3096.5,3096.4,0.00480585]
[1720600803294,6.5586963,3096.5,3096.4,0.00480585]
[1720600804101,2.44,3096.9,3096.4,0.00480585]
[1720600804414,4.46136223,3097.4,3096.5,2.3425]
[1720600804415,3.78461486,3097.3,3096.5,2.3425]
[1720600804725,1.18295149,3097.2,3096.6,0.55]
[1720600804927,1.11838999,3097.1,3096.6,0.55]
[1720600805127,1.11838999,3097.0,3096.6,0.55]
[1720600805300,0.0645615,3097.2,3096.6,0.86320364]
[1720600805487,1.1183606,3097.1,3096.6,0.86320364]
[1720600805694,1.1183606,3097.0,3096.6,0.86320364]
[1720600805917,3.0,3097.2,3096.6,0.86320364]
[1720600806224,2.44,3096.9,3096.4,0.00480585]
[1720600806437,1.11836261,3096.8,3096.4,0.00480585]
[1720600806602,4.11836261,3096.8,3096.4,0.00480585]
[1720600806790,3.0,3096.8,3096.4,0.00480585]
[1720600806992,2.44,3096.9,3096.4,0.00480585]
[1720600809596,0.0645615,3096.8,3096.4,0.00480585]
[1720600809798,3.0,3096.8,3096.4,0.00480585]
[1720600810005,3.0645615,3096.8,3096.4,0.00480585]
[1720600810298,2.44,3096.5,3096.4,0.00480585]
[1720600810543,3.62300787,3096.5,3096.4,0.00480585]
[1720600810691,3.55844637,3096.5,3096.4,0.00480585]
[1720600811094,6.55844637,3096.5,3096.4,0.00480585]
[1720600811405,3.0,3096.5,3096.4,0.00480585]
[1720600811593,3.0,3096.8,3096.4,0.00480585]
[1720600811790,2.44,3096.9,3096.4,0.00480585]
[1720600812044,1.18297011,3096.8,3096.4,0.00480585]
[1720600812334,2.44,3096.5,3096.4,0.00480585]
[1720600812529,3.55840861,3096.5,3096.4,0.00480585]
[1720600812829,6.55840861,3096.5,3096.4,0.00480585]
[1720600814437,7.06519442,3096.5,3096.4,0.00480585]
[1720600815232,5.94678581,3096.5,3096.4,0.00480585]
[1720600816924,3.50678581,3096.5,3096.4,0.00480585]
[1720600817226,3.50678581,3096.5,3096.4,0.80053644]
[1720600817541,4.62532723,3096.5,3096.4,0.55480585]
[1720600817838,3.50678581,3096.5,3096.4,0.55480585]
[1720600818143,0.50678581,3096.5,3096.4,0.55480585]
[1720600819016,0.50678581,3096.5,3096.4,0.00480585]
[1720600819742,1.6252835,3096.5,3096.4,0.00480585]
[1720600821446,0.50678581,3096.5,3096.4,0.24411644]
[1720600821648,1.62519573,3096.5,3096.4,0.79411644]
[1720600821809,1.62519573,3096.5,3096.4,0.00480585]
[1720600823260,2.50901731,3096.5,3096.4,0.00480585]
[1720600823420,7.97326365,3096.5,3096.4,0.00480585]
[1720600823754,4.68996493,3096.5,3096.4,0.00480585]
[1720600823953,4.62540343,3096.5,3096.4,0.00480585]
[1720600825349,4.68996493,3096.5,3096.4,0.00480585]
[1720600825510,4.62540343,3096.5,3096.4,0.00480585]
[1720600826843,4.62532267,3096.5,3096.4,0.00480585]
[1720600827141,4.68988417,3096.5,3096.4,0.00480585]
[1720600827640,4.62532267,3096.5,3096.4,0.00480585]
[1720600828163,4.68988417,3096.5,3096.4,0.00480585]
[1720600830375,3.50678581,3096.5,3096.4,0.00480585]
[1720600830673,4.62534483,3096.5,3096.4,0.00480585]
[1720600832868,4.68990633,3096.5,3096.4,0.00480585]
[1720600833071,5.53100369,3096.5,3096.4,0.00480585]
[1720600833576,6.87795669,3096.5,3096.4,0.00480585]
[1720600833929,5.75939767,3096.5,3096.4,0.00480585]
[1720600834130,6.87799627,3096.5,3096.4,0.00480585]
[1720600834645,6.81343477,3096.5,3096.4,0.00480585]
[1720600835147,5.97233741,3096.5,3096.4,0.00480585]
[1720600836081,4.62538441,3096.5,3096.4,0.00480585]
[1720600836763,4.62538441,3096.5,3096.1,1.09714494]
[1720600836967,4.1185986,3096.4,3096.1,1.09714494]
[1720600837284,1.1185986,3096.3,3096.1,1.09714494]
[1720600837586,1.1185986,3096.2,3096.1,1.09714494]
[1720600837730,1.1185986,3096.2,3096.1,1.52765859]
[1720600838143,0.50678581,3096.5,3096.1,2.07765859]
[1720600838346,1.11836485,3096.4,3096.2,0.55]
[1720600838562,0.50678581,3096.5,3096.2,0.55]
[1720600838737,1.11835241,3096.4,3096.3,0.20776586]
[1720600840644,1.346953,3096.8,3096.4,2.3344]
[1720600840855,1.346953,3097.2,3096.6,2.3344]
[1720600841060,1.11815322,3097.1,3096.7,0.55]
[1720600841232,0.50665122,3097.4,3096.8,0.2948975]
[1720600841437,1.11807361,3097.3,3096.9,0.55]
[1720600841674,1.11807361,3097.2,3096.9,0.55]
[1720600841840,1.11807361,3097.3,3096.9,0.55]
[1720600842186,4.11807361,3097.3,3096.9,0.55]
[1720600842469,1.11807361,3097.2,3096.9,0.55]
[1720600842675,1.11807361,3097.2,3096.7,0.55]
[1720600842848,1.11807361,3097.2,3096.7,0.83844]
[1720600843640,3.50665122,3097.4,3096.7,0.83844]
[1720600843970,0.50665122,3097.4,3096.7,0.83844]
[1720600844284,1.1181538,3097.3,3096.7,0.83844]
[1720600844487,3.50665122,3097.4,3096.7,0.83844]
[1720600844687,4.1181511,3097.3,3096.8,0.317284]
[1720600844980,3.0,3097.3,3096.9,0.55]
[1720600845147,0.50665122,3097.4,3096.9,0.55]
[1720600845345,1.11815086,3097.3,3096.9,0.55]
[1720600845577,0.50665122,3097.4,3096.9,0.55]
[1720600845784,1.11815083,3097.3,3096.9,0.55]
[1720600845986,0.50665122,3097.4,3096.9,0.55]
[1720600846279,1.11815269,3097.3,3096.9,0.55]
[1720600846478,0.50665122,3097.4,3096.9,0.55]
[1720600846776,1.11814913,3097.3,3096.9,0.55]
[1720600846953,0.50665122,3097.4,3096.9,0.55]
[1720600847155,1.11815059,3097.3,3096.9,0.55]
[1720600847379,0.50665122,3097.4,3096.9,0.55]
[1720600847581,1.11815111,3097.3,3096.9,0.55]
[1720600847769,0.50665122,3097.4,3096.9,0.55]
[1720600848082,1.11815203,3097.3,3096.9,0.55]
[1720600848268,0.50665122,3097.4,3096.9,0.55]
[1720600850083,0.50665122,3097.4,3097.0,2.2693]
[1720600850292,0.50665122,3097.4,3097.0,2.5829584]
[1720600852054,0.50665122,3097.4,3097.1,0.55]
[1720600852904,4.34776647,3098.0,3097.1,0.55]
[1720600853050,2.44,3097.7,3097.1,0.55]
[1720600853256,1.36202089,3097.6,3097.1,0.55]
[1720600853489,2.44,3097.7,3097.1,0.55]
[1720600853789,1.11809166,3097.6,3097.1,0.55]
[1720600854085,3.0,3097.6,3097.1,0.55]
[1720600854302,5.44,3097.7,3097.1,0.55]
[1720600854504,2.44,3097.7,3097.1,0.55]
[1720600854803,2.44,3097.7,3097.1,1.43010081]
[1720600856670,2.44,3097.7,3097.1,0.55]
[1720600856873,1.11805791,3097.6,3097.1,0.55]
[1720600857075,3.0,3097.6,3097.1,0.55]
[1720600857295,5.44,3097.7,3097.1,0.55]
[1720600857602,1.11806415,3097.6,3097.1,0.55]
[1720600857801,2.44,3097.7,3097.1,0.55]
[1720600857979,1.11806271,3097.6,3097.1,1.43010081]
[1720600858176,3.0,3097.6,3097.1,1.43010081]
[1720600858478,2.44,3097.7,3097.1,1.43010081]
[1720600858665,1.11805511,3097.6,3097.1,1.43010081]
[1720600859006,3.0,3097.6,3097.1,1.43010081]
[1720600859166,3.0,3097.6,3097.1,0.55]
[1720600859366,2.44,3097.7,3097.1,0.55]
[1720600859566,1.11806177,3097.6,3097.1,0.55]
[1720600859870,3.0,3097.6,3097.1,0.55]
[1720600860292,5.44,3097.7,3097.1,0.55]
[1720600860493,1.11807294,3097.6,3097.1,0.55]
[1720600860675,3.0,3097.6,3097.1,0.55]
[1720600860876,2.44,3097.7,3097.1,0.55]
[1720600861068,1.11806409,3097.6,3097.1,0.55]
[1720600861282,3.0,3097.6,3097.1,1.43010081]
[1720600861590,3.0,3097.6,3097.1,0.55]
[1720600861767,2.44,3097.7,3097.1,0.55]
[1720600861768,5.44,3097.7,3097.1,0.55]
[1720600861965,1.11806837,3097.6,3097.1,0.55]
[1720600862290,3.0,3097.6,3097.1,0.55]
[1720600862607,2.44,3097.7,3097.1,0.55]
[1720600862608,1.11806727,3097.5,3097.1,0.55]
[1720600862803,3.0,3097.6,3097.1,0.55]
[1720600862987,1.11806884,3097.5,3097.1,0.55]
[1720600863184,1.11806884,3097.5,3097.0,8.25100806]
[1720600863185,3.0,3097.6,3097.0,8.25100806]
[1720600863406,1.11807427,3097.5,3097.0,8.25100806]
[1720600863607,3.0,3097.6,3097.0,8.25100806]
[1720600863808,1.11807944,3097.5,3097.0,8.25100806]
[1720600863969,1.11807944,3097.4,3097.0,8.25100806]
[1720600864298,3.0,3097.6,3097.0,2.2693]
[1720600864510,1.11808632,3097.5,3097.0,2.2693]
[1720600864691,3.0,3097.6,3097.0,2.2693]
[1720600864692,1.016,3097.2,3097.0,2.2693]
[1720600865389,1.016,3097.2,3097.0,2.49623]
[1720600867694,2.13409349,3097.2,3096.7,2.3435]
[1720600867901,1.016,3096.9,3096.8,0.55]
[1720600868080,2.13420908,3096.9,3096.8,0.55]
[1720600868266,2.13420908,3096.9,3096.6,5.98170806]
[1720600868467,1.016,3096.7,3096.6,5.98170806]
[1720600868689,2.13425889,3096.7,3096.6,5.98170806]
[1720600868909,1.016,3096.7,3096.6,5.98170806]
[1720600869407,2.13423027,3096.7,3096.6,5.98170806]
[1720600869618,2.13423027,3096.7,3096.6,6.53170806]
[1720600870426,1.016,3096.7,3096.6,1.43752081]
[1720600870633,3.0,3097.4,3096.6,0.55]